Cogmind - Beta 15 @@@ ROGUE MODE // 2025.08.03 @ 15:20:20 Player: GiggleBox Result: Destroyed by S-43 Plague with Heavy Machine Gun Performance ------------- Evolutions (9) 4500 Regions Visited (28) 5600 Robots Destroyed (240) 1200 Value Destroyed (8830) 8830 Prototype IDs (62) 1240 Alien Tech Used (3) 600 Bonus (4353) 4353 TOTAL SCORE: 26323 Bonus ------- High Alert Combat Kills 13 Follower Combat Kills 1466 Network Hubs Disabled 200 Met Data Miner 300 Met Zhirov 300 Met Warlord at Base 500 MAIN.C Attacked Warlord 500 Warlord Defense Kills 400 Built Enhanced Grunts 300 Met R17 at Cetus 500 Friendly Fire -126 Cogmind --------- Core Integrity 0/1600 Matter 153/300 Energy 100/100 System Corruption 31% Temperature Cool (0) Movement Core (50) Location -1/Access Parts ------- > --- POWER (3) -------- (None) > --- PROPULSION (8) --- (None) > --- UTILITY (10) ----- Advanced Signal Interpreter Advanced Targeting Computer Advanced Melee Analysis Suite Core Analyzer Improved Armor Integrity Analyzer > --- WEAPON (4) ------- (None) > --- INVENTORY (5) ---- Enhanced Multireflex Exoskeleton Heavy Shield Leg Advanced Energy Well (500) Peak State ------------ > --- POWER ------------ Light Quantum Reactor Light Quantum Reactor Light Quantum Reactor > --- PROPULSION ------- Enhanced Multireflex Exoskeleton Enhanced Multireflex Exoskeleton Enhanced Multireflex Exoskeleton Enhanced Multireflex Exoskeleton > --- UTILITY ---------- Advanced Coolant Injector Huge Storage Unit Spectral Analyzer Advanced Sensor Array Advanced Signal Interpreter Advanced Targeting Computer Experimental Core Analyzer Improved Armor Integrity Analyzer Advanced Kinecellerator Centrium Light Armor Plating > --- WEAPON ----------- Hypervelocity Railgun Helical Railgun Helical Railgun Plasma Lance > --- INVENTORY -------- Micro Antimatter Reactor Light Quantum Reactor Enhanced Multireflex Exoskeleton Heavy Shield Leg Cooled Gravmag System Advanced Heat Sink Advanced Coolant Injector Advanced Energy Well Advanced Melee Analysis Suite Energy Filter Advanced Weapon Cycler Experimental Reaction Control System Advanced Phase Shifter Centrium Light Armor Plating Transdimensional Reconstructor Nova Cannon Railgun Enhanced Hardcell Cannon Enhanced Hardcell Cannon Enhanced Hardcell Cannon Gamma Bomb Array Lance Plasma Lance [Rating: 218] Favorites ----------- Power Quantum Reactor Engine Light Ion Engine Power Core Fission Core Reactor Quantum Reactor Propulsion Carbon-fiber Leg Treads Light Treads Leg Carbon-fiber Leg Wheel Centrium Wheel Hover Unit Improved Antigrav System Flight Unit Field Propulsion Drive Utility Large Storage Unit Device Advanced Sensor Array Storage Large Storage Unit Processor Core Analyzer Hackware Advanced Hacking Suite Protection Centrium Medium Armor Plating Weapon Impact Mace Energy Gun Advanced Variable Charge Gun Energy Cannon Advanced Beam Cannon Ballistic Gun Advanced KE Penetrator Ballistic Cannon Light Cannon Launcher Advanced EMP Blaster Impact Weapon Impact Mace Slashing Weapon Phasing Sabre Piercing Weapon Plasma Lance Build | -11 -10 -9 -8 -7 -7 -7 -6 -6 -6 -6 -6 -6 -5 -5 -5 -5 -4 -4 -4 -4 -4 -4 -4 -3 -3 -3 -2 -1 ------- Run | Yrd Mat Mat Mat Fac Low Dat Pro Fac Ext Cet Arc Hub Fac Upp Upp War Pro Fac Was Fac Upp Upp Zhi Pro Res Tes Res Acc Slots Evolved 18 | . . 2 2 2 . . . 2 . . . . 2 . . . . 2 . . . . . . 2 . 2 2 Power 2 | . . . . . . . . . . . . . 1 . . . . . . . . . . . 1 . . . Propulsion 6 | . . 1 1 1 . . . 1 . . . . . . . . . . . . . . . . 1 . 1 . Utility 8 | . . 1 1 1 . . . 1 . . . . . . . . . 2 . . . . . . . . 1 1 Weapon 2 | . . . . . . . . . . . . . 1 . . . . . . . . . . . . . . 1 Parts Attached 250 | 8 6 25 15 14 . . 8 2 19 11 1 7 6 1 2 19 3 5 3 21 1 5 8 4 14 7 23 12 Power 31 | 1 . 4 1 3 . . 1 . 2 1 . . 2 . . 2 . . . 3 . . . 1 3 . 4 3 Engine 12 | 1 . 4 1 3 . . 1 . 1 . . . . . . . . . . . . . . 1 . . . . Core 5 | . . . . . . . . . 1 . . . 1 . . 1 . . . 2 . . . . . . . . Reactor 14 | . . . . . . . . . . 1 . . 1 . . 1 . . . 1 . . . . 3 . 4 3 Propulsion 93 | 2 1 10 7 7 . . 6 . 9 2 1 4 2 1 1 8 1 1 . 10 . 3 3 1 3 4 4 2 Treads 11 | . . 8 . 1 . . . . . . . . . . 1 . . 1 . . . . . . . . . . Leg 57 | 2 1 1 7 6 . . 6 . 9 2 1 4 2 1 . 8 . . . 1 . . . . . . 4 2 Wheel 1 | . . . . . . . . . . . . . . . . . . . . 1 . . . . . . . . Hover 18 | . . . . . . . . . . . . . . . . . 1 . . 5 . 1 3 1 3 4 . . Flight 6 | . . 1 . . . . . . . . . . . . . . . . . 3 . 2 . . . . . . Utility 78 | 2 2 7 2 4 . . 1 2 4 5 . 1 2 . . 6 2 4 1 4 1 1 5 2 4 2 8 6 Device 32 | 1 . 3 . 2 . . 1 1 2 . . 1 2 . . 2 1 3 . 2 . . 1 1 2 1 4 2 Storage 9 | 1 1 1 . . . . . 1 . . . . . . . 1 . . . . . . 2 . . . 2 . Processor 20 | . . . 1 2 . . . . . 2 . . . . . 3 . 1 1 2 1 . . 1 1 . 1 4 Hackware 1 | . . . . . . . . . . . . . . . . . . . . . . 1 . . . . . . Protection 16 | . 1 3 1 . . . . . 2 3 . . . . . . 1 . . . . . 2 . 1 1 1 . Artifact . | . . . . . . . . . . . . . . . . . . . . . . . . . . . . . Weapon 48 | 3 3 4 5 . . . . . 4 3 . 2 . . 1 3 . . 2 4 . 1 . . 4 1 7 1 Energy Gun 4 | 2 . 1 . . . . . . . 1 . . . . . . . . . . . . . . . . . . Energy Cannon 4 | . . 1 . . . . . . . . . . . . . . . . . 1 . . . . . 1 1 . Ballistic Gun 10 | 1 . . . . . . . . . 2 . 1 . . . 1 . . . 2 . . . . 1 . 2 . Ballistic Cannon 14 | . 2 1 2 . . . . . 2 . . 1 . . . 1 . . 1 . . 1 . . . . 2 1 Launcher 4 | . . 1 . . . . . . . . . . . . 1 . . . . 1 . . . . 1 . . . Special Weapon . | . . . . . . . . . . . . . . . . . . . . . . . . . . . . . Impact Weapon 5 | . 1 . 3 . . . . . . . . . . . . . . . . . . . . . 1 . . . Slashing Weapon 2 | . . . . . . . . . 2 . . . . . . . . . . . . . . . . . . . Piercing Weapon 5 | . . . . . . . . . . . . . . . . 1 . . 1 . . . . . 1 . 2 . Special Melee Weapon . | . . . . . . . . . . . . . . . . . . . . . . . . . . . . . Unidentified Prototypes 34 | . . 5 1 . . . . . . 3 . 1 . . . 11 1 . . . . 1 5 . . 1 4 1 Corrupted Parts 3 | . . . . . . . 3 . . . . . . . . . . . . . . . . . . . . . System Corruption 27 | . . . . . . . 27 . . . . . . . . . . . . . . . . . . . . . Parts Lost 92 | . 1 10 1 4 . . 8 . 1 4 1 3 3 . 2 . 5 . 7 16 . 2 . 1 . . 3 20 Power 11 | . . . . 1 . . 1 . 1 . . . 1 . . . . . . 1 . . . . . . 1 5 Propulsion 43 | . . 7 1 1 . . 6 . . 3 1 2 2 . 2 . 2 . 5 6 . 1 . . . . . 4 Utility 28 | . . 2 . 2 . . . . . 1 . 1 . . . . 3 . 1 7 . 1 . 1 . . 2 7 Weapon 10 | . 1 1 . . . . 1 . . . . . . . . . . . 1 2 . . . . . . . 4 Highest Loss Streak 8 | . 1 2 1 2 . . 4 . 1 3 1 2 2 . 1 . 5 . 7 8 . 2 . 1 . . 1 6 To Critical Strikes 4 | . 1 . . . . . . . . . 1 . . . 1 . . . 1 . . . . . . . . . Average Backups 12 | 3 9 11 14 12 14 14 12 9 13 14 14 14 13 14 14 14 12 14 13 3 4 4 3 3 4 4 13 20 Power . | . 1 1 1 . . . . . . . 1 1 . 1 1 . 1 1 1 . 1 . . . . . . . Propulsion 1 | 1 2 1 2 3 5 5 3 1 3 1 . 1 . . . . . . . . . . . . . . 2 2 Utility 5 | . 3 5 5 4 5 5 5 5 5 5 5 6 7 7 8 8 6 8 8 1 2 2 2 2 2 2 5 8 Weapon 4 | . 2 2 3 4 4 4 3 3 4 6 8 6 5 5 5 4 4 5 4 . 1 1 1 . . 1 4 6 Tool/Special . | . . . . . . . . . . . . . . . . . . . . . . . . . . . . . Unused Backups 35 | . 2 1 5 1 . . . . 2 . . 1 1 . . 4 . 1 4 . . 1 . . 1 . 3 8 Power 4 | . . 1 2 . . . . . . . . . . . . . . . . . . . . . . . 1 . Propulsion 3 | . 2 . . . . . . . 1 . . . . . . . . . . . . . . . . . . . Utility 21 | . . . 2 1 . . . . 1 . . . 1 . . 3 . 1 3 . . 1 . . 1 . 1 6 Weapon 7 | . . . 1 . . . . . . . . 1 . . . 1 . . 1 . . . . . . . 1 2 Tool/Special . | . . . . . . . . . . . . . . . . . . . . . . . . . . . . . Average Slot Usage (%) 91 | . 100 88 95 97 100 100 99 98 92 99 99 99 92 97 96 94 91 93 85 71 15 27 58 86 93 87 80 74 Engine 4 | . 14 10 9 6 7 7 6 6 4 . . . . . . . . . . . . . . . 1 . . . Reactor 3 | . . . . . . . . . . 5 6 6 7 5 5 5 5 5 4 4 . . . . 9 14 12 9 Treads 3 | . . 24 . 1 7 7 1 . . . . . . . 1 3 . 3 4 . . . . . . . . . Leg 24 | . 28 3 35 36 30 30 36 40 40 39 39 39 30 32 29 27 29 26 22 . . . . . . . 13 14 Hover 2 | . . . . . . . . . . . . . . . . . 2 1 . 15 . 2 13 21 31 29 4 . Device 7 | . 4 9 7 5 7 7 7 6 5 . . 5 7 5 5 4 9 10 9 15 . . 2 9 10 14 14 10 Storage 6 | . 14 11 9 7 7 7 7 11 6 6 6 6 5 5 5 5 5 5 4 . . . 5 5 3 . 3 3 Processor 13 | . . . 7 19 23 23 23 20 13 19 20 20 17 17 17 19 17 20 24 17 10 11 10 10 14 14 13 20 Protection 5 | . 9 6 9 3 . . . . 6 12 13 6 2 5 5 3 1 5 . . . . 4 8 3 4 3 2 Energy Cannon 1 | . . 8 . . . . . . . . . . . . . . . . . . . . . . . 3 2 1 Ballistic Gun 1 | . . . . . . . . . . 2 6 3 4 5 4 4 . . . 6 . . . . . . 1 5 Ballistic Cannon 3 | . 20 1 3 . . . 2 6 2 . . 1 . . . . 3 5 4 . . . 1 5 3 . 3 . Impact Weapon 6 | . 4 11 14 15 15 15 11 6 4 . . . 5 5 5 5 5 5 4 . . . . . 3 . . . Slashing Weapon 2 | . . . . . . . . . 5 6 6 6 5 5 5 4 5 5 4 . . . . . . . . . Peak Build Rating 218 | 7 9 19 38 49 48 48 48 52 72 89 89 89 92 87 89 134 139 151 146 134 34 62 113 118 141 149 204 218 Average Rating 74 | 5 8 15 30 44 48 48 46 48 60 85 88 83 81 85 85 95 127 148 127 98 27 40 83 113 128 145 182 190 On Entrance 75 | . 7 9 18 38 48 48 48 46 49 72 89 88 77 82 87 84 134 131 149 42 27 34 49 113 117 141 149 204 Naked Turns . | . . . . . . . . . . . . . . . . . . . . . . . . . . . . . Heaviest Build 163 | 12 22 42 48 48 37 37 41 61 68 68 64 64 83 71 73 85 80 87 77 65 . 22 39 47 57 57 158 163 Greatest Support 200 | 20 20 60 59 82 60 60 75 90 115 115 115 115 100 92 92 160 160 135 135 59 7 14 45 56 76 87 200 200 Greatest Overweight (x) 11 | . 1 2 1 11 . . . . . . . . 1 . 1 1 . . 2 3 . 1 1 1 . . . 2 Average Overweight (x) . | . . . . . . . . . . . . . . . . . . . . . . . . . . . . . Largest Inventory Capacity 25 | 8 10 15 15 15 15 15 15 15 15 15 15 15 15 15 15 15 15 15 15 5 5 5 5 5 5 5 25 25 Average Capacity 14 | 7 9 13 15 15 15 15 15 15 15 15 15 15 15 15 15 15 15 15 13 5 5 5 5 5 5 5 18 23 Most Carried 25 | 4 10 15 15 15 15 15 15 10 15 15 15 15 15 15 15 15 15 15 15 5 4 5 5 5 5 5 25 25 Average Carried 12 | 3 9 12 14 12 15 15 13 9 13 14 14 14 13 14 15 14 12 14 13 3 4 4 3 3 4 4 14 22 Final Capacity 25 | 8 10 15 15 15 15 15 15 15 15 15 15 15 15 15 15 15 15 15 5 5 5 5 5 5 5 5 25 5 Final Carried 25 | 4 10 15 15 15 15 15 11 10 15 15 14 14 15 15 15 15 13 15 5 4 4 5 3 5 5 5 25 5 Class Distribution -------------------- 28% | Mutant 16% | Scavenger-Gladiator 15% | Gladiator 10% | Scavenger-Mutant 8% | Commander-Mutant 7% | Scavenger-Assassin 6% | Assassin Dominant Class ---------------- Mutant | -10/Materials Mutant | -9/Materials Gladiator | -8/Materials Gladiator | -7/Factory Gladiator | -7/Lower Caves Gladiator | -7/Data Miner Gladiator | -6/Proximity Caves Scavenger-Mutant | -6/Factory Scavenger-Mutant | -6/Extension Commander-Mutant | -6/Cetus Commander-Mutant | -6/Archives Commander-Mutant | -6/Hub_04(d) Scavenger-Gladiator | -5/Factory Scavenger-Gladiator | -5/Upper Caves Scavenger-Gladiator | -5/Upper Caves Scavenger-Gladiator | -5/Warlord Scavenger-Mutant | -4/Proximity Caves Scavenger-Assassin | -4/Factory Assassin | -4/Waste Assassin | -4/Factory Mutant | -4/Upper Caves Derelict-Mutant | -4/Upper Caves Derelict-Mutant | -4/Zhirov Derelict-Mutant | -3/Proximity Caves Derelict-Sprinter | -3/Research Ninja | -3/Testing Assassin | -2/Research Scavenger-Assassin | -1/Access Resources | -11 -10 -9 -8 -7 -7 -7 -6 -6 -6 -6 -6 -6 -5 -5 -5 -5 -4 -4 -4 -4 -4 -4 -4 -3 -3 -3 -2 -1 ----------- Run | Yrd Mat Mat Mat Fac Low Dat Pro Fac Ext Cet Arc Hub Fac Upp Upp War Pro Fac Was Fac Upp Upp Zhi Pro Res Tes Res Acc Matter Collected 5785 | 296 258 369 265 209 10 . 280 . 486 196 25 292 140 58 64 342 167 120 . 338 72 144 109 51 162 254 561 517 Remotely . | . . . . . . . . . . . . . . . . . . . . . . . . . . . . . Salvage Created 11969 | 90 442 1532 599 854 137 . 1285 . 1652 55 137 511 441 153 489 159 80 358 . 421 . . 98 30 137 122 604 1583 Parts 392 | 4 21 60 11 18 3 . 43 . 45 4 8 17 14 . 14 4 . 10 . 13 . . . 3 2 3 21 74 Haulers Intercepted 10 | . 2 4 . 1 . . . . . . . 1 . . . . . 1 . . . . . . . . . 1 Recyclers Shooed 5 | . . 2 1 . . . . . . . . . . . . . . . . . . . . . . 1 . 1 Parts Field Recycled . | . . . . . . . . . . . . . . . . . . . . . . . . . . . . . Retrieved Matter . | . . . . . . . . . . . . . . . . . . . . . . . . . . . . . Parts Self-Destructed 16 | . . . . . 1 . 8 . . . . . . . 5 . . . . . . . . 2 . . . . Prevented 39 | . . . . . . . 32 . . . . . . . 7 . . . . . . . . . . . . . Kills | -11 -10 -9 -8 -7 -7 -7 -6 -6 -6 -6 -6 -6 -5 -5 -5 -5 -4 -4 -4 -4 -4 -4 -4 -3 -3 -3 -2 -1 ------- Run | Yrd Mat Mat Mat Fac Low Dat Pro Fac Ext Cet Arc Hub Fac Upp Upp War Pro Fac Was Fac Upp Upp Zhi Pro Res Tes Res Acc Combat Hostiles Destroyed 160 | . 11 25 17 13 1 . 23 . 15 1 1 2 6 . 5 4 1 2 . 2 . . . 4 . . 6 21 Melee 42 | . . 6 6 5 1 . 3 . 9 1 . . 1 . 1 . 1 1 . . . . . . . . 1 6 Guns 21 | . . . . . . . . . . . 1 2 . . . 3 . . . 2 . . . . . . 4 9 Cannons 28 | . 8 13 1 . . . . . 2 . . . . . . 1 . . . . . . . . . . 1 2 AOE 29 | . . 1 . . . . 13 . 1 . . . 4 . 4 . . . . . . . . 4 . . . 2 Classes Destroyed 21 | 2 5 3 . 2 1 . 3 . . . . . . 1 . 1 1 . . . . . . 1 . . 1 . Worker 21 | . 1 5 2 2 . . . . . . . 2 . . . . . 2 . 2 . . . . 5 . . . Builder 9 | . . 2 . 3 . . . . 1 . . . . . . . . . . 1 . . . . 1 . . 1 Tunneler 5 | 1 . 1 . 1 . . . . . . . . . . . . . . . . . . . . 1 . . 1 Hauler 10 | . 2 4 . 1 . . . . . . . 1 . . . . . 1 . . . . . . . . . 1 Recycler 18 | 1 . 3 1 3 . . . . 5 . . 1 . . . . . 1 . 1 . . . . . 1 1 . Minesweeper 2 | . . . . . 1 . . . . . . . . . 1 . . . . . . . . . . . . . Operator 5 | . . 1 . . . . . . 1 . 2 1 . . . . . . . . . . . . . . . . Drone 1 | . . . . . . . . . . . . . . . . . . . . . . . . 1 . . . . Watcher 9 | . 1 3 . 1 . . . . 1 . . . 1 . . . . . . 1 . . . . 1 . . . Swarmer 37 | . 3 6 7 4 . . 4 . . . . . . . 2 2 . . . . . . . 3 . . . 6 Saboteur 1 | . . . . . . . 1 . . . . . . . . . . . . . . . . . . . . . Grunt 58 | . 8 11 8 4 . . 7 . 7 . . . 5 . . 1 . . . 2 . . . . . . . 5 Brawler 6 | . . . . . . . 3 . . . . . . . 2 . . . . . . . . . . . . 1 Duelist 4 | . . . . . . . 4 . . . . . . . . . . . . . . . . . . . . . Sentry 25 | . . 8 2 1 . . 1 . 5 . 1 2 1 . 1 . . . . . . . . . . . 1 2 Demolisher 1 | . . . . . . . . . . . . . . . . 1 . . . . . . . . . . . . Hunter 16 | . . . . 1 1 . 3 . 2 . . . . . . . . . . . . . . . . . 4 5 Programmer 8 | . . . . 3 . . . . 1 . . . . . . . . 2 . . . . . . . . . 2 Behemoth 1 | . . . . . . . . . . . . . . . . . 1 . . . . . . . . . . . Cetus Guard 1 | . . . . . . . . . . 1 . . . . . . . . . . . . . . . . . . Enhanced Grunt 1 | . . . . . . . . . . . . 1 . . . . . . . . . . . . . . . . Striker 1 | . . . . . . . . . . . . . . . . . . . . . . . . . . . 1 . Decomposer 1 | . . . . . . . . . . . . . . . . . 1 . . . . . . . . . . . Packrat 1 | . . . . . 1 . . . . . . . . . . . . . . . . . . . . . . . Samaritan 1 | . . . . . . . . . . . . . . 1 . . . . . . . . . . . . . . Best Kill Streak 7 | 1 3 6 4 4 1 . 5 . 5 1 2 2 6 . 4 3 1 3 . 2 . . . 3 3 1 2 7 Combat Bots Only 7 | . 3 4 4 4 1 . 5 . 5 1 1 1 5 . 4 3 1 1 . 2 . . . 3 . . 2 7 Max Kills in Single Turn 3 | 1 1 1 1 1 1 . 3 . 1 1 1 2 3 1 2 1 1 1 . 1 . . . 1 1 1 1 2 Gunslinging . | . . . . . . . . . . . . . . . . . . . . . . . . . . . . . Exploded 3 | . . 1 . . . . 3 . 1 . . . 3 . 2 . . . . . . . . 1 . . . 1 Melee 1 | . . 1 1 1 1 . 1 . 1 1 . . 1 . 1 . 1 1 . . . . . . . . 1 1 Uniques/NPCs Destroyed . | . . . . . . . . . . . . . . . . . . . . . . . . . . . . . Combat | -11 -10 -9 -8 -7 -7 -7 -6 -6 -6 -6 -6 -6 -5 -5 -5 -5 -4 -4 -4 -4 -4 -4 -4 -3 -3 -3 -2 -1 -------- Run | Yrd Mat Mat Mat Fac Low Dat Pro Fac Ext Cet Arc Hub Fac Upp Upp War Pro Fac Was Fac Upp Upp Zhi Pro Res Tes Res Acc Hostile Shots Fired 1620 | . 45 212 91 105 24 . 61 . 193 39 2 86 21 16 21 4 63 12 6 114 . 14 . 36 18 24 58 355 Missed 521 | . 8 52 28 27 8 . 18 . 71 12 1 37 4 8 7 . 6 2 1 48 . 6 . 13 10 9 22 123 Deflected 6 | . . . . . . . . . . . . . . . . . . . . . . . . . . . 2 4 Hits 1099 | . 37 160 63 78 16 . 43 . 122 27 1 49 17 8 14 4 57 10 5 66 . 8 . 23 8 15 36 232 Melee 22 | . . . . . . . 7 . . . . . . . 5 2 . . 5 . . . . . . . 2 1 Projectile 1077 | . 37 160 63 78 16 . 36 . 122 27 1 49 17 8 9 2 57 10 . 66 . 8 . 23 8 15 34 231 AOE 5 | . . . . . . . . . . . . 1 . . . 3 . . . . . . . . . . . 1 Critical Strikes 60 | . 2 . 1 2 . . 4 . 3 5 1 2 2 1 2 2 3 2 3 7 . 3 . 1 . 2 1 11 Part Disruptions 1 | . . . . . . . . . . . . . . . . . . . . . . . . . . . . 1 Damage Taken 20583 | . 463 1918 656 940 241 . 985 . 1305 800 50 1004 350 111 401 218 1762 208 246 1309 . 185 . 578 218 446 862 5327 Core 3465 | . 101 325 76 58 49 . 80 . 123 95 . 55 23 . 95 33 262 18 40 216 . 124 . 44 16 67 59 1506 Absorbed by Shields 208 | . . . . . . . . . 62 40 . . . . . 52 . . . 18 . . . . . . . 36 Redirected to Shielding 28 | . . . . . . . . . . . . . . . . . . . . . . . . 28 . . . . Regen/Repaired (Parts) 211 | . . . . . . . . . . . . . . . . 211 . . . . . . . . . . . . Core Remaining (%) 71 | 100 59 18 86 . . . 73 . . . . 67 . . . . 58 . . . . . . 61 . 93 95 . Volleys Fired 413 | 16 34 84 6 . . . 22 . 27 14 5 36 10 2 6 11 4 6 . 16 . 3 7 8 1 7 43 45 Largest 3 | 2 2 1 1 . . . 1 . 1 1 1 1 1 1 1 1 1 1 . 2 . 1 1 2 1 1 2 3 Hottest 240 | 60 80 68 40 . . . 36 . 48 240 35 240 36 35 43 58 58 58 . 70 . 56 56 105 56 98 171 189 Shots Fired 513 | 31 53 84 6 . . . 22 . 27 14 5 36 10 2 6 11 4 6 . 29 . 3 7 9 1 7 54 86 Gun 207 | 31 11 . . . . . . . . 6 5 28 6 2 3 8 . . . 27 . . . . . . 18 62 Cannon 256 | . 42 80 6 . . . . . 23 8 . 8 . . . 3 4 6 . . . 2 7 3 1 7 36 20 Launcher 50 | . . 4 . . . . 22 . 4 . . . 4 . 3 . . . . 2 . 1 . 6 . . . 4 Special . | . . . . . . . . . . . . . . . . . . . . . . . . . . . . . Kinetic 329 | 16 42 17 6 . . . . . 23 13 5 33 6 2 3 11 4 6 . 27 . 2 7 3 1 . 31 71 Thermal 126 | 15 3 63 . . . . . . . 1 . 3 . . . . . . . . . . . . . 7 23 11 Explosive 9 | . . . . . . . . . . . . . . . . . . . . 2 . 1 . 6 . . . . Electromagnetic 49 | . 8 4 . . . . 22 . 4 . . . 4 . 3 . . . . . . . . . . . . 4 Robot Hit Streak 12 | 7 6 8 5 . . . 4 . 2 3 5 5 4 . 7 10 . 2 . 5 . . 12 2 . 2 10 11 Robot Miss Streak 5 | 4 4 4 2 . . . 5 . 4 4 2 3 4 . . 2 . 1 . 3 . . . 2 . 2 3 4 Penetration Max 1 | . . . . . . . . . . . . . . . . 1 . . . . . . . . . . 1 1 Secondary Targets 2 | . . . . . . . . . . . . . . . . . . . . 1 . . . . . . . 1 Max Gunslinging Chain 1 | . . . . . . . . . . . . . . . . . . . . 1 . . . . . . . 1 Capacitor 24 | . . . . . . . . . . . . . . . . . . . . . . . . . . 7 17 . Shots Hit Robots 597 | 21 36 105 39 40 7 . 23 1 52 7 5 22 9 5 15 8 16 16 . 22 . . 7 2 9 5 37 88 Core Hits 269 | 4 17 29 5 7 2 . 33 . 25 4 2 11 10 2 10 7 3 3 . 8 . . 7 12 1 1 13 53 Critical Kills 18 | . . . 1 3 1 . . . 5 . . . . . 1 . . . . . . . . . . . 4 3 Critical Parts Destroyed 64 | . 3 8 8 15 . . 4 . 3 2 . 3 3 . 1 . . 4 . . . . . . 2 . 3 5 Critical Strikes 103 | . 4 8 9 19 1 . 4 . 13 2 . 4 3 1 4 . . 5 . 3 . . . . 2 1 10 10 Destroy 21 | . . . . . . . . . 1 2 . 3 . . . . . . . . . . . . . . 7 8 Blast 1 | . 1 . . . . . . . . . . . . . . . . . . . . . . . . . . . Smash 65 | . 3 8 9 19 1 . 4 . 7 . . 1 3 . 4 . . 4 . . . . . . 2 . . . Sever 7 | . . . . . . . . . 5 . . . . 1 . . . 1 . . . . . . . . . . Impale 9 | . . . . . . . . . . . . . . . . . . . . 3 . . . . . 1 3 2 Melee Attacks 570 | . 8 83 57 86 8 . 15 4 59 9 3 22 14 6 18 4 20 27 . 20 . . . . 19 17 16 55 Impact 348 | . 8 83 57 86 8 . 15 4 26 . . 4 6 1 14 2 . 15 . . . . . . 19 . . . Slashing 95 | . . . . . . . . . 33 9 3 18 8 5 4 2 1 12 . . . . . . . . . . Piercing 108 | . . . . . . . . . . . . . . . . . . . . 20 . . . . . 17 16 55 Entropic 19 | . . . . . . . . . . . . . . . . . 19 . . . . . . . . . . . Sneak Attacks 74 | . 1 16 3 12 2 . 1 1 9 . 2 2 . 1 1 . 1 4 . 4 . . . . 8 2 1 3 Combat Hostiles 2 | . . . . . . . 1 . 1 . . . . . . . . . . . . . . . . . . . Follow-up Attacks 23 | . . . 6 4 . . 2 . 2 . . . 1 . 3 . 1 2 . . . . . . . . . 2 Martial Strikes 2 | . . . . . . . . . . . . . . . . . . . . . . . . . . . 1 1 Damage Inflicted 30030 | 192 823 3743 1970 2638 398 . 2357 119 2881 205 345 1426 732 387 966 389 1432 1007 . 906 . . 116 496 741 292 994 4475 Guns 3113 | 192 61 . . . . . . . . 81 84 522 27 . . 215 . . . 389 . . . . . . 104 1438 Cannons 3573 | . 458 1075 137 . . . . . 113 71 . . . . . 108 . 172 . . . . 116 . . 130 645 548 Explosions 4641 | . 36 117 . . . . 1651 . 330 . . 337 487 . 251 . . . . . . . . 496 . . . 936 Melee 18551 | . 265 2551 1833 2638 398 . 706 119 2410 53 261 512 218 387 715 66 1432 773 . 513 . . . . 741 162 245 1553 Ramming 152 | . 3 . . . . . . . 28 . . 55 . . . . . 62 . 4 . . . . . . . . Kinetic 4776 | 68 458 217 137 . . . . . 113 152 84 421 27 . . 323 . 172 . 389 . . 116 . . . 319 1780 Thermal 2474 | 124 48 858 . . . . 197 . . . . 101 45 . . . . . . . . . . . . 130 430 541 Explosive 599 | . . . . . . . . . . . . . . . . . . . . . . . . 496 . . . 103 Electromagnetic 3478 | . 49 117 . . . . 1454 . 330 . . 337 442 . 251 . . . . . . . . . . . . 498 Impact 12069 | . 265 2551 1833 2638 398 . 706 119 1232 . . 116 169 76 657 66 . 502 . . . . . . 741 . . . Slashing 2628 | . . . . . . . . . 1178 53 261 396 49 311 58 . 51 271 . . . . . . . . . . Piercing 2473 | . . . . . . . . . . . . . . . . . . . . 513 . . . . . 162 245 1553 Entropic 1381 | . . . . . . . . . . . . . . . . . 1381 . . . . . . . . . . . Highest Corruption 31 | . . . 4 2 2 2 27 . . . . 5 . . 1 1 . 1 1 1 5 . . . . 6 . 31 Average Corruption 2 | . . . 4 1 2 2 2 . . . . 3 . . 1 1 . 1 1 1 5 . . . . 3 . 8 Corruption Purged 2 | . . . . . . . 2 . . . . . . . . . . . . . . . . . . . . . Corruption Blocked . | . . . . . . . . . . . . . . . . . . . . . . . . . . . . . Effects 77 | . . . 18 10 8 2 2 . . . . 2 . . 8 . . . 1 6 1 . . . . 1 . 18 Message Errors 19 | . . . 7 2 3 . . . . . . . . . 2 . . . . 1 . . . . . . . 4 Matter Fused 22 | . . . 5 4 1 . . . . . . . . . 2 . . . . 2 1 . . . . 1 . 6 Heat Flow Errors 10 | . . . 4 1 1 . . . . . . 1 . . . . . . 1 . . . . . . . . 2 Energy Discharges 3 | . . . . . . . . . . . . . . . . . . . . 1 . . . . . . . 2 Parts Rejected 1 | . . . . . . . . . . . . . . . . . . . . . . . . . . . . 1 Data Loss (minor) 11 | . . . 1 2 . 2 1 . . . . 1 . . 4 . . . . . . . . . . . . . Data Loss (major) 7 | . . . 1 1 2 . 1 . . . . . . . . . . . . 1 . . . . . . . 1 Alerts 1 | . . . . . 1 . . . . . . . . . . . . . . . . . . . . . . . Misdirections 2 | . . . . . . . . . . . . . . . . . . . . . . . . . . . . 2 Weapon Failures 1 | . . . . . . . . . . . . . . . . . . . . 1 . . . . . . . . Overload Shots 2 | . . . . . . . . . . 1 . 1 . . . . . . . . . . . . . . . . Effects 1 | . . . . . . . . . . . . 1 . . . . . . . . . . . . . . . . Heat Surge 1 | . . . . . . . . . . . . 1 . . . . . . . . . . . . . . . . Overflow Damage 6619 | . 125 947 826 1469 59 . 337 . 576 . 108 120 169 142 268 16 . 356 . 308 . . . 12 484 161 19 117 Projectiles 72 | . . 30 34 . . . . . . . . . . . . . . . . . . . . . . 2 . 6 Explosions 87 | . . 7 . . . . 12 . 17 . . 17 . . . . . . . . . . . 12 . . . 22 Melee 6460 | . 125 910 792 1469 59 . 325 . 559 . 108 103 169 142 268 16 . 356 . 308 . . . . 484 159 19 89 Knockbacks 73 | . 8 13 14 13 1 . 4 . 7 . . 2 . . 1 3 . . . . . . . . 3 . 3 1 Impact 49 | . 2 7 11 13 1 . 4 . 5 . . 2 . . 1 1 . . . . . . . . 2 . . . Kinetic 18 | . 6 3 2 . . . . . 2 . . . . . . 1 . . . . . . . . . . 3 1 Secondary 6 | . . 3 1 . . . . . . . . . . . . 1 . . . . . . . . 1 . . . Self-Inflicted Damage 385 | . . 35 . . . . 99 . . . . 103 . . 16 . . . . 2 . 29 . 75 . . . 26 Shots 13 | . . 2 . . . . 5 . . . . 1 . . 1 . . . . . . 1 . 1 . . . 2 Rammed 1 | . . . . . . . . . . . . . . . . . . . . 1 . . . . . . . . Targets Rammed 9 | . 3 . . . . . . . 2 . . 2 . . . . . 1 . 1 . . . . . . . . Kicked 8 | . 3 . . . . . . . 2 . . 2 . . . . . 1 . . . . . . . . . . Crushed . | . . . . . . . . . . . . . . . . . . . . . . . . . . . . . Highest Temperature 399 | 20 72 42 270 235 255 . 18 . 30 194 . 399 27 . 15 4 335 . 264 113 . 23 . 13 72 246 385 135 Average Temperature 60 | 14 28 8 141 117 137 . 10 . 9 59 . 123 21 . 11 2 167 . 139 40 . 23 . 13 23 86 114 51 Received Heat Transfer 3546 | . 222 600 180 174 . . 156 . 321 72 . 111 144 . 9 6 843 . . 368 . 73 . 132 45 . 9 81 Effects 4 | . . . 2 . . . . . . . . 1 . . . . . . . . . . . . . . 1 . Shutdowns 1 | . . . . . . . . . . . . . . . . . . . . . . . . . . . 1 . Energy Bleed 1 | . . . . . . . . . . . . 1 . . . . . . . . . . . . . . . . Interference 2 | . . . 2 . . . . . . . . . . . . . . . . . . . . . . . . . Siege Activations . | . . . . . . . . . . . . . . . . . . . . . . . . . . . . . Martial Activations 6 | . . . . . . . . . . . . . . . . . . . . . . . . . . . 2 4 Total Turns 92 | . . . . . . . . . . . . . . . . . . . . . . . . . . . 29 63 Longest Duration 24 | . . . . . . . . . . . . . . . . . . . . . . . . . . . 17 24 Shielding Activations . | . . . . . . . . . . . . . . . . . . . . . . . . . . . . . Robots Disrupted . | . . . . . . . . . . . . . . . . . . . . . . . . . . . . . Combat Hostiles . | . . . . . . . . . . . . . . . . . . . . . . . . . . . . . Robots Corrupted 66 | . 3 12 12 14 . . 7 . 6 . . 1 1 1 3 . . 1 . . . . . . 3 . . 2 Combat Hostiles 42 | . 3 5 10 8 . . 7 . 3 . . . 1 . 2 . . 1 . . . . . . . . . 2 Parts Fried 95 | . 4 12 13 19 1 . 15 . 8 . . 3 4 . 1 . . 3 . . . . . . 10 . . 2 Impact Corruptions 181 | . 5 37 26 46 1 . 8 . 15 . . 1 3 5 10 1 . 8 . . . . . . 15 . . . Robots Melted . | . . . . . . . . . . . . . . . . . . . . . . . . . . . . . Combat Hostiles . | . . . . . . . . . . . . . . . . . . . . . . . . . . . . . Parts Melted 3 | . . 1 . . . . . . 1 . . . . . . . . . . . . . . . . . . 1 Heat Transferred 3180 | 300 25 1517 . . . . 150 . . . . 87 87 . . . . . . . . . . . . 200 379 435 Parts Sabotaged . | . . . . . . . . . . . . . . . . . . . . . . . . . . . . . Parts Stolen . | . . . . . . . . . . . . . . . . . . . . . . . . . . . . . Parts Stripped . | . . . . . . . . . . . . . . . . . . . . . . . . . . . . . Power Chain Reactions 8 | . 1 . . . . . 2 . . . . 1 2 . 1 . . . . . . . . . . . . 1 Alert | -11 -10 -9 -8 -7 -7 -7 -6 -6 -6 -6 -6 -6 -5 -5 -5 -5 -4 -4 -4 -4 -4 -4 -4 -3 -3 -3 -2 -1 ------- Run | Yrd Mat Mat Mat Fac Low Dat Pro Fac Ext Cet Arc Hub Fac Upp Upp War Pro Fac Was Fac Upp Upp Zhi Pro Res Tes Res Acc Maximum Alert Level 3 | . . 1 . . . . . . 1 . 1 3 1 . . . . . . . . . . . . . . 1 Low Security (%) 86 | 100 100 62 100 100 . . . 100 97 100 76 36 . . . . . 100 100 100 . . . . 100 100 100 93 Level 1 11 | . . 37 . . . . . . 2 . 23 14 100 . . . . . . . . . . . . . . 6 Level 2 2 | . . . . . . . . . . . . 47 . . . . . . . . . . . . . . . . Level 3 . | . . . . . . . . . . . . 1 . . . . . . . . . . . . . . . . Level 4 . | . . . . . . . . . . . . . . . . . . . . . . . . . . . . . Level 5 . | . . . . . . . . . . . . . . . . . . . . . . . . . . . . . High Security . | . . . . . . . . . . . . . . . . . . . . . . . . . . . . . Max Security . | . . . . . . . . . . . . . . . . . . . . . . . . . . . . . Peak Influence 733 | 5 128 290 171 80 . . . 85 292 164 227 733 365 . . . . 37 8 79 . . . . 128 76 50 292 Initial 317 | . . 13 40 33 . . . 85 . 158 49 51 317 . . . . . 8 . . . . . 70 72 15 . Average 78 | . 32 131 46 21 . . . 44 42 96 162 344 298 . . . . 5 1 10 . . . . 94 50 10 77 Influence Increases 8122 | 10 407 1028 493 475 50 . 588 3 804 445 228 1149 214 5 115 80 30 134 . 277 . 30 . 165 198 97 214 883 Destroy 0b10 Robot/C 3780 | . 220 500 340 260 20 . 480 . 420 160 80 300 120 . 100 80 20 40 . 40 . . . 60 . . 120 420 Destroy 0b10 Robot/NC 455 | 10 20 95 15 55 5 . . . 55 10 10 35 5 5 15 . . 25 . 25 . . . 5 40 5 5 15 Destroy Leader 730 | . 56 154 70 72 10 . 60 . 62 . . 76 22 . . . 10 22 . 2 . . . 10 2 . 20 82 Allied During Kill 816 | . . . . . . . 3 . 150 162 90 411 . . . . . . . . . . . . . . . . Successful Hack 269 | . 41 31 15 17 . . . . . . . 12 16 . . . . 12 . 24 . . . . 65 36 . . Disable Machine 480 | . 15 75 15 15 . . . . . 105 45 120 . . . . . . . . . . . . 15 15 . 60 Destroy Structure 572 | . 10 8 8 26 . . . 3 12 8 3 135 36 . . . . 20 . 66 . . . . 16 26 69 126 Partial Spotted 60 | . . . . . . . . . . . . . . . . . . . . 15 . . . . 30 15 . . Lose Combat Pursuer 960 | . 45 165 30 30 15 . 45 . 105 . . 60 15 . . . . 15 . 105 . 30 . 90 30 . . 180 Influence Decreases 7822 | 10 376 963 514 540 60 . 452 139 520 605 205 648 607 260 115 38 72 110 24 246 31 30 . 60 175 196 243 583 Entered New Map 1070 | . . 18 56 42 4 . . 51 . 126 75 96 331 95 . . 42 . 16 . 13 . . . 35 56 14 . Time Decay 5242 | 10 344 618 298 478 56 . 362 88 450 270 100 342 246 165 105 38 30 110 8 150 18 30 . 50 130 140 206 400 Lost Part 637 | . 10 85 10 20 . . 70 . 10 40 10 30 30 . 10 . . . . 96 . . . 10 . . 23 183 Lost Ally 459 | . . . . . . . 20 . 60 169 20 180 . . . . . . . . . . . . 10 . . . Purge Threat 414 | . 22 242 150 . . . . . . . . . . . . . . . . . . . . . . . . . Squads Dispatched 37 | . . 2 3 6 . . 1 1 3 . . 7 . . . . . 2 . 2 . . . . 1 1 1 7 Investigation 4 | . . 1 1 1 . . . . . . . . . . . . . . . . . . . . . . . 1 Extermination 15 | . . . . 4 . . . . . . . 2 . . . . . 2 . 1 . . . . 1 1 . 4 Reinforcement 14 | . . 1 2 1 . . . 1 3 . . 4 . . . . . . . 1 . . . . . . 1 . Assault 2 | . . . . . . . 1 . . . . 1 . . . . . . . . . . . . . . . . Garrison 2 | . . . . . . . . . . . . . . . . . . . . . . . . . . . . 2 Intercept . | . . . . . . . . . . . . . . . . . . . . . . . . . . . . . Searches Triggered . | . . . . . . . . . . . . . . . . . . . . . . . . . . . . . Data Miner Redirects 1 | . . . . . . . . . . . . 1 . . . . . . . . . . . . . . . . Construction Impeded 2 | . . . . . . . . . 2 . . . . . . . . . . . . . . . . . . . Haulers Reinforced 4 | . . . . 1 . . . 1 . . . 1 . . . . . . . . . . . . . . 1 . Active Scanning Responses . | . . . . . . . . . . . . . . . . . . . . . . . . . . . . . Cargo Convoy Interrupts . | . . . . . . . . . . . . . . . . . . . . . . . . . . . . . Stealth | -11 -10 -9 -8 -7 -7 -7 -6 -6 -6 -6 -6 -6 -5 -5 -5 -5 -4 -4 -4 -4 -4 -4 -4 -3 -3 -3 -2 -1 --------- Run | Yrd Mat Mat Mat Fac Low Dat Pro Fac Ext Cet Arc Hub Fac Upp Upp War Pro Fac Was Fac Upp Upp Zhi Pro Res Tes Res Acc Distress Signals 31 | . 1 6 3 1 . . . . 3 2 . 1 . . . . . . . . . . . . . . 11 3 Communications Jammed 14 | . . . . . . . . . . . . . . . . . . 1 . 5 . . . . 1 7 . . Distress Signals 13 | . . . . . . . . . . . . . . . . . . . . 5 . . . . 1 7 . . Times Spotted 404 | . 20 51 25 15 2 . 25 . 30 10 3 27 10 6 10 32 1 5 4 24 . 2 . 10 7 10 19 56 Peak Tracking Total 13 | . 3 7 5 4 1 . 5 . 8 5 1 10 6 6 5 9 1 2 4 9 . 2 . 5 4 7 7 13 Tactical Retreats 34 | . 2 4 1 2 1 . 2 . 5 . . 2 1 . . . . 1 . 4 . 1 . 3 1 . . 4 Traps | -11 -10 -9 -8 -7 -7 -7 -6 -6 -6 -6 -6 -6 -5 -5 -5 -5 -4 -4 -4 -4 -4 -4 -4 -3 -3 -3 -2 -1 ------- Run | Yrd Mat Mat Mat Fac Low Dat Pro Fac Ext Cet Arc Hub Fac Upp Upp War Pro Fac Was Fac Upp Upp Zhi Pro Res Tes Res Acc Traps Triggered 21 | . . 1 1 . . . . 1 3 . . 1 3 . . . . 1 . 1 . . . . . 3 . 6 Indirectly 6 | . . . . . . . . . . . . . 3 . . . . . . . . . . . . . . 3 Trap Hack Attempts . | . . . . . . . . . . . . . . . . . . . . . . . . . . . . . Triggered . | . . . . . . . . . . . . . . . . . . . . . . . . . . . . . Disarmed . | . . . . . . . . . . . . . . . . . . . . . . . . . . . . . Reprogrammed . | . . . . . . . . . . . . . . . . . . . . . . . . . . . . . Reused 3 | . . . . . 3 . . . . . . . . . . . . . . . . . . . . . . . Traps Extracted . | . . . . . . . . . . . . . . . . . . . . . . . . . . . . . Installed 20 | . . . . . 10 . . . . . . . . . 10 . . . . . . . . . . . . . Triggered 3 | . . . . . 3 . . . . . . . . . . . . . . . . . . . . . . . Machines | -11 -10 -9 -8 -7 -7 -7 -6 -6 -6 -6 -6 -6 -5 -5 -5 -5 -4 -4 -4 -4 -4 -4 -4 -3 -3 -3 -2 -1 ---------- Run | Yrd Mat Mat Mat Fac Low Dat Pro Fac Ext Cet Arc Hub Fac Upp Upp War Pro Fac Was Fac Upp Upp Zhi Pro Res Tes Res Acc Machines Disabled 38 | . 2 5 1 1 . . 1 . 2 8 3 8 . . . . . . . . . 1 . . 1 1 . 4 Max in Single Turn 6 | . 1 1 1 1 . . 1 . 1 1 1 6 . . . . . . . . . 1 . . 1 1 . 1 Garrison Access 1 | . . . . . . . . . . . . . . . . . . . . . . . . . . . 1 . Network Hub 1 | . . . . . . . . . . . . 1 . . . . . . . . . . . . . . . . Energy Cycler 1 | . . . . . . . . . 1 . . . . . . . . . . . . . . . . . . . Machines Repaired . | . . . . . . . . . . . . . . . . . . . . . . . . . . . . . Machines Dismantled . | . . . . . . . . . . . . . . . . . . . . . . . . . . . . . Machines Sabotaged . | . . . . . . . . . . . . . . . . . . . . . . . . . . . . . Overloaded Fab Kills . | . . . . . . . . . . . . . . . . . . . . . . . . . . . . . Hacking | -11 -10 -9 -8 -7 -7 -7 -6 -6 -6 -6 -6 -6 -5 -5 -5 -5 -4 -4 -4 -4 -4 -4 -4 -3 -3 -3 -2 -1 --------- Run | Yrd Mat Mat Mat Fac Low Dat Pro Fac Ext Cet Arc Hub Fac Upp Upp War Pro Fac Was Fac Upp Upp Zhi Pro Res Tes Res Acc Machines Accessed 79 | . 8 10 6 6 . 4 . 1 2 . 1 1 3 . . 11 . 3 . 3 . 2 6 . 5 4 1 2 Terminals 51 | . 8 10 6 4 . . . 1 2 . . 1 2 . . . . 2 . 3 . . . . 5 4 1 2 Fabricators 3 | . . . . 2 . . . . . . . . 1 . . . . . . . . . . . . . . . Repair Stations . | . . . . . . . . . . . . . . . . . . . . . . . . . . . . . Recycling Units . | . . . . . . . . . . . . . . . . . . . . . . . . . . . . . Scanalyzers . | . . . . . . . . . . . . . . . . . . . . . . . . . . . . . Garrison Access 1 | . . . . . . . . . . . . . . . . . . 1 . . . . . . . . . . Total Hacks 233 | . 34 35 21 16 . 28 . 1 4 . 1 2 8 . . 19 . 7 . 7 . 2 19 . 9 11 3 6 Successful 143 | . 20 18 13 6 . 28 . . . . 1 2 2 . . 19 . 3 . 2 . 2 19 . 4 3 . 1 Failed 89 | . 13 17 8 10 . . . 1 4 . . . 6 . . . . 4 . 5 . . . . 5 8 3 5 Catastrophic 18 | . . 1 1 . . . . . 1 . . . 2 . . . . 3 . 3 . . . . 2 3 1 1 Database Lockouts 1 | . 1 . . . . . . . . . . . . . . . . . . . . . . . . . . . Manual 91 | . 23 24 17 8 . . . . . 1 . 1 2 . . 1 . 2 . 5 . . . . 4 2 1 . Terminals 159 | . 34 35 21 13 . . . 1 4 . . 2 7 . . . . 6 . 7 . . . . 9 11 3 6 Fabricators 4 | . . . . 3 . . . . . . . . 1 . . . . . . . . . . . . . . . Repair Stations . | . . . . . . . . . . . . . . . . . . . . . . . . . . . . . Recycling Units . | . . . . . . . . . . . . . . . . . . . . . . . . . . . . . Scanalyzers . | . . . . . . . . . . . . . . . . . . . . . . . . . . . . . Garrison Access 1 | . . . . . . . . . . . . . . . . . . 1 . . . . . . . . . . Terminal Hacks 106 | . 11 9 5 2 . 28 . . . . 1 1 1 . . 19 . 2 . 1 . 2 19 . 2 2 . 1 Record 39 | . . . . . . 11 . . . . 1 . . . . 18 . . . . . 2 7 . . . . . Part Schematic 13 | . . . . . . 9 . . . . . . . . . . . . . . . . 4 . . . . . Robot Schematic 5 | . . . . . . 5 . . . . . . . . . . . . . . . . . . . . . . Robot Analysis 6 | . 1 . . . . . . . . . . 1 . . . . . . . . . . 4 . . . . . Prototype ID Bank 15 | . 1 5 . . . 3 . . . . . . . . . . . . . . . . 4 . 1 1 . . Open Door 1 | . . . . . . . . . . . . . . . . 1 . . . . . . . . . . . . Level Access Points 1 | . 1 . . . . . . . . . . . . . . . . . . . . . . . . . . . Branch Access Points 4 | . . . . . . . . . . . . . 1 . . . . 1 . 1 . . . . . 1 . . Terminal Index 2 | . . . 1 1 . . . . . . . . . . . . . . . . . . . . . . . . Alert Level 3 | . 1 1 1 . . . . . . . . . . . . . . . . . . . . . . . . . Unreport Threat 4 | . 1 2 1 . . . . . . . . . . . . . . . . . . . . . . . . . Locate Traps 5 | . 3 1 . . . . . . . . . . . . . . . . . . . . . . 1 . . . Recall Investigation 1 | . . . . . . . . . . . . . . . . . . . . . . . . . . . . 1 Hauler Manifests 1 | . 1 . . . . . . . . . . . . . . . . . . . . . . . . . . . Registered Components 3 | . 1 . 1 . . . . . . . . . . . . . . 1 . . . . . . . . . . Zone Layout 3 | . 1 . 1 1 . . . . . . . . . . . . . . . . . . . . . . . . Fabricator Hacks 2 | . . . . 1 . . . . . . . . 1 . . . . . . . . . . . . . . . Network Status 1 | . . . . . . . . . . . . . 1 . . . . . . . . . . . . . . . Build 1 | . . . . 1 . . . . . . . . . . . . . . . . . . . . . . . . Repair Station Hacks . | . . . . . . . . . . . . . . . . . . . . . . . . . . . . . Recycling Unit Hacks . | . . . . . . . . . . . . . . . . . . . . . . . . . . . . . Scanalyzer . | . . . . . . . . . . . . . . . . . . . . . . . . . . . . . Garrison Access Hacks . | . . . . . . . . . . . . . . . . . . . . . . . . . . . . . Unauthorized Hacks 35 | . 9 9 8 3 . . . . . . . 1 . . . . . 1 . 1 . . . . 2 1 . . Terminals 35 | . 9 9 8 3 . . . . . . . 1 . . . . . 1 . 1 . . . . 2 1 . . Track 1 | . 1 . . . . . . . . . . . . . . . . . . . . . . . . . . . Assimilate 1 | . . . . . . . . . . . . . . . . . . . . . . . . . 1 . . . Botnet 15 | . 3 2 3 2 . . . . . . . 1 . . . . . 1 . 1 . . . . 1 1 . . Operators 3 | . . 2 . 1 . . . . . . . . . . . . . . . . . . . . . . . . Skim 15 | . 5 5 5 . . . . . . . . . . . . . . . . . . . . . . . . . Fabricators . | . . . . . . . . . . . . . . . . . . . . . . . . . . . . . Repair Stations . | . . . . . . . . . . . . . . . . . . . . . . . . . . . . . Recycling Units . | . . . . . . . . . . . . . . . . . . . . . . . . . . . . . Scanalyzers . | . . . . . . . . . . . . . . . . . . . . . . . . . . . . . Garrison Access . | . . . . . . . . . . . . . . . . . . . . . . . . . . . . . Data Cores Recovered 1 | . . 1 . . . . . . . . . . . . . . . . . . . . . . . . . . Used 1 | . . 1 . . . . . . . . . . . . . . . . . . . . . . . . . . Hacking Detections 55 | . 8 10 6 6 . . . 1 2 . . 1 3 . . . . 3 . 3 . . . . 5 4 1 2 Full Trace Events 4 | . . 2 . 1 . . . . . . . . . . . . . . . . . . . . . . . 1 Feedback Events . | . . . . . . . . . . . . . . . . . . . . . . . . . . . . . Feedback Blocked . | . . . . . . . . . . . . . . . . . . . . . . . . . . . . . Robot Schematics Acquired 5 | . . . . . . 5 . . . . . . . . . . . . . . . . . . . . . . Robots Built . | . . . . . . . . . . . . . . . . . . . . . . . . . . . . . Authchips . | . . . . . . . . . . . . . . . . . . . . . . . . . . . . . Time . | . . . . . . . . . . . . . . . . . . . . . . . . . . . . . Total Robot Build Rating . | . . . . . . . . . . . . . . . . . . . . . . . . . . . . . Part Schematics Acquired 13 | . . . . . . 9 . . . . . . . . . . . . . . . . 4 . . . . . Parts Built 2 | . . . . 2 . . . . . . . . . . . . . . . . . . . . . . . . Authchips . | . . . . . . . . . . . . . . . . . . . . . . . . . . . . . Time 95 | . . . . 95 . . . . . . . . . . . . . . . . . . . . . . . . Total Part Build Rating 10 | . . . . 10 . . . . . . . . . . . . . . . . . . . . . . . . Parts Repaired . | . . . . . . . . . . . . . . . . . . . . . . . . . . . . . Time . | . . . . . . . . . . . . . . . . . . . . . . . . . . . . . Parts Recycled . | . . . . . . . . . . . . . . . . . . . . . . . . . . . . . Recycled Matter . | . . . . . . . . . . . . . . . . . . . . . . . . . . . . . Retrieved Matter . | . . . . . . . . . . . . . . . . . . . . . . . . . . . . . Retrieved Components . | . . . . . . . . . . . . . . . . . . . . . . . . . . . . . Parts Scanalyzed . | . . . . . . . . . . . . . . . . . . . . . . . . . . . . . Part Schematics Acquired . | . . . . . . . . . . . . . . . . . . . . . . . . . . . . . Parts Damaged . | . . . . . . . . . . . . . . . . . . . . . . . . . . . . . Bothacking | -11 -10 -9 -8 -7 -7 -7 -6 -6 -6 -6 -6 -6 -5 -5 -5 -5 -4 -4 -4 -4 -4 -4 -4 -3 -3 -3 -2 -1 ------------ Run | Yrd Mat Mat Mat Fac Low Dat Pro Fac Ext Cet Arc Hub Fac Upp Upp War Pro Fac Was Fac Upp Upp Zhi Pro Res Tes Res Acc Used RIF Installer . | . . . . . . . . . . . . . . . . . . . . . . . . . . . . . Robots Hacked . | . . . . . . . . . . . . . . . . . . . . . . . . . . . . . Non-combat . | . . . . . . . . . . . . . . . . . . . . . . . . . . . . . Combat . | . . . . . . . . . . . . . . . . . . . . . . . . . . . . . Robot Hacks Applied . | . . . . . . . . . . . . . . . . . . . . . . . . . . . . . Relay Couplers Released . | . . . . . . . . . . . . . . . . . . . . . . . . . . . . . Fabnet Peak Effective % . | . . . . . . . . . . . . . . . . . . . . . . . . . . . . . Robots Rewired 16 | . . . . . . . 1 . 15 . . . . . . . . . . . . . . . . . . . Allies Hacked . | . . . . . . . . . . . . . . . . . . . . . . . . . . . . . Hacks Repelled . | . . . . . . . . . . . . . . . . . . . . . . . . . . . . . Allies | -11 -10 -9 -8 -7 -7 -7 -6 -6 -6 -6 -6 -6 -5 -5 -5 -5 -4 -4 -4 -4 -4 -4 -4 -3 -3 -3 -2 -1 -------- Run | Yrd Mat Mat Mat Fac Low Dat Pro Fac Ext Cet Arc Hub Fac Upp Upp War Pro Fac Was Fac Upp Upp Zhi Pro Res Tes Res Acc Total Allies 28 | . . . . . . . 1 . 21 5 . . . . . . . . . . . . . . 1 . . . Largest Group 17 | . . . . . . . 1 . 17 17 13 12 . . . . . . . . . . . . 1 . . . Highest-Rated Group 767 | . . . . . . . 32 . 580 767 693 673 . . . . . . . . . . . . 45 . . . Highest-Rated Ally 152 | . . . . . . . 32 . 152 152 96 96 . . . . . . . . . . . . 45 . . . Total Orders 3 | . . . . . . . . . . . . 3 . . . . . . . . . . . . . . . . STAY 1 | . . . . . . . . . . . . 1 . . . . . . . . . . . . . . . . FOLLOW 2 | . . . . . . . . . . . . 2 . . . . . . . . . . . . . . . . Ally Attacks 273 | . . . . . . . 4 . 46 90 39 94 . . . . . . . . . . . . . . . . Total Damage 6451 | . . . . . . . 114 . 843 2056 1012 2426 . . . . . . . . . . . . . . . . Kills 36 | . . . . . . . 1 . 7 9 3 16 . . . . . . . . . . . . . . . . Allies Corrupted 5 | . . . . . . . . . . . . 5 . . . . . . . . . . . . . . . . Allies Melted 2 | . . . . . . . . . 1 . . . . . . . . . . . . . . . . . 1 . Intel | -11 -10 -9 -8 -7 -7 -7 -6 -6 -6 -6 -6 -6 -5 -5 -5 -5 -4 -4 -4 -4 -4 -4 -4 -3 -3 -3 -2 -1 ------- Run | Yrd Mat Mat Mat Fac Low Dat Pro Fac Ext Cet Arc Hub Fac Upp Upp War Pro Fac Was Fac Upp Upp Zhi Pro Res Tes Res Acc Active Infowar (turns) 14380 | 12 544 79 488 1422 382 93 766 185 1351 44 . 529 471 952 628 1150 453 821 143 699 86 241 112 207 269 291 906 1056 Optics 5698 | . . . . . . . . . . . . . . . . 414 453 821 143 699 86 241 112 207 269 291 906 1056 Sensors 11363 | . . . . 1015 382 93 766 185 1351 44 . 529 471 952 628 892 371 821 126 511 . . . . 65 291 906 964 Seismic 1544 | 12 544 79 488 421 . . . . . . . . . . . . . . . . . . . . . . . . Machine Analysis 279 | . . . . . . . . . . . . . . . . . . . . 279 . . . . . . . . Cloaking 490 | . . . . . . . . . . . . . . . . . . . . . . . . 203 269 18 . . Jamming 2876 | . . . . . . . . . . . . . . . . . . 820 133 617 . 1 3 3 241 291 767 . ECM 1 | . . . . . . . . 1 . . . . . . . . . . . . . . . . . . . . Robot Analysis Total 6 | . 1 . . . . . . . . . . 1 . . . . . . . . . . 4 . . . . . Derelict Logs Recovered 5 | . . . . . . . . . . . . . . 1 1 . 2 . . . 1 . . . . . . . Drone Launches . | . . . . . . . . . . . . . . . . . . . . . . . . . . . . . Drone Recoveries . | . . . . . . . . . . . . . . . . . . . . . . . . . . . . . Exploration | -11 -10 -9 -8 -7 -7 -7 -6 -6 -6 -6 -6 -6 -5 -5 -5 -5 -4 -4 -4 -4 -4 -4 -4 -3 -3 -3 -2 -1 ------------- Run | Yrd Mat Mat Mat Fac Low Dat Pro Fac Ext Cet Arc Hub Fac Upp Upp War Pro Fac Was Fac Upp Upp Zhi Pro Res Tes Res Acc Turns Passed 20163 | 169 1873 2327 768 1805 382 93 822 185 1587 596 207 764 526 952 628 1167 453 821 143 699 86 241 112 207 269 291 906 1084 Spaces Moved 14113 | 87 746 1113 328 1131 286 78 545 141 816 248 115 428 375 808 493 699 353 640 108 660 188 463 177 377 533 677 840 660 Core 241 | 3 . . . 1 . . . . . . . . . . . . . . 29 5 . 64 . . . . . 139 Treads 1004 | . . 1004 . . . . . . . . . . . . . . . . . . . . . . . . . . Legs 9562 | 84 746 109 328 1130 286 78 545 141 816 248 115 428 375 808 493 699 353 640 79 . . . . . . . 540 521 Wheels 73 | . . . . . . . . . . . . . . . . . . . . 73 . . . . . . . . Hover 2441 | . . . . . . . . . . . . . . . . . . . . 470 . . 84 377 533 677 300 . Flight 792 | . . . . . . . . . . . . . . . . . . . . 112 188 399 93 . . . . . Fastest Speed 26 | 50 120 120 120 120 120 120 120 120 120 120 120 120 114 114 114 108 105 108 50 44 45 42 40 38 26 26 31 50 Average Speed 107 | 117 157 163 162 123 120 120 121 120 120 120 120 120 119 114 114 151 108 108 95 78 45 43 43 42 26 29 81 99 Slowest Speed 600 | 120 190 260 190 600 120 120 123 120 121 120 120 120 190 115 187 187 110 108 180 245 45 122 122 92 38 33 110 280 Overloaded Moves . | . . . . . . . . . . . . . . . . . . . . . . . . . . . . . Propulsion Burnouts . | . . . . . . . . . . . . . . . . . . . . . . . . . . . . . Robots Hopped 4 | . . . . . . . . . . . . . . . . . . . . 4 . . . . . . . . Potential Cave-ins 10 | . . . . . . . . . 8 . . 2 . . . . . . . . . . . . . . . . Cave-ins Triggered . | . . . . . . . . . . . . . . . . . . . . . . . . . . . . . Teleports 1 | . . . . . . . . . . . . . . . . . . . . . . . . . . . . 1 Exploration Rate (%) 53 | 7 92 94 39 30 66 69 68 5 65 80 79 39 11 89 61 94 58 20 84 20 47 66 62 62 13 69 29 30 Regions Visited 28 Branch Regions 16 Pre-discovered Areas 8 | . 3 1 . . . 1 . . . . . . . . . . . . . . . . 3 . . . . . Known Exits Taken 21 | . 1 1 1 1 1 1 1 1 1 1 1 1 1 1 1 1 . . . 1 1 . . . 1 1 1 . Unknown Exits Taken 5 | 1 . . . . . . . . . . . . . . . . 1 . . . . 1 1 1 . . . . Scrap Searched 23 | . . . . . 3 . 1 . . . . . . 4 3 . 3 . . . 2 4 . 3 . . . . Spaces Dug 354 | . 2 8 5 26 . . . 3 4 . . 198 4 2 5 2 1 8 . 12 . . . 31 8 11 12 12 Terrain Destroyed 651 | . 7 8 8 26 . . 7 3 18 6 2 206 18 3 5 3 4 10 . 61 . 7 . 143 8 13 28 57 Melee 123 | . 2 8 5 26 . . . 3 3 . . 11 4 1 3 2 . 8 . 11 . . . . 8 10 9 9 Projectile 99 | . . . 3 . . . . . 15 6 2 12 2 2 2 1 4 2 . 8 . . . . . 3 19 18 AOE 429 | . 5 . . . . . 7 . . . . 183 12 . . . . . . 42 . 7 . 143 . . . 30 Terrain Rammed . | . . . . . . . . . . . . . . . . . . . . . . . . . . . . . Walls Destroyed . | . . . . . . . . . . . . . . . . . . . . . . . . . . . . . Machines Disabled . | . . . . . . . . . . . . . . . . . . . . . . . . . . . . . Actions | -11 -10 -9 -8 -7 -7 -7 -6 -6 -6 -6 -6 -6 -5 -5 -5 -5 -4 -4 -4 -4 -4 -4 -4 -3 -3 -3 -2 -1 --------- Run | Yrd Mat Mat Mat Fac Low Dat Pro Fac Ext Cet Arc Hub Fac Upp Upp War Pro Fac Was Fac Upp Upp Zhi Pro Res Tes Res Acc Total 17767 | 121 1380 1396 478 1411 311 77 651 150 1313 516 174 606 423 823 525 792 395 725 147 758 188 496 200 415 622 742 996 936 Wait 1788 | 6 564 47 45 176 8 . 42 . 158 223 51 91 5 3 . 22 2 42 28 15 . 15 4 20 38 23 26 134 Move 14080 | 86 745 1112 327 1130 285 77 544 140 815 247 114 428 374 807 492 698 352 640 107 652 187 462 176 376 532 676 839 660 Hop 4 | . . . . . . . . . . . . . . . . . . . . 4 . . . . . . . . Pick Up 158 | 4 11 17 14 8 . . 6 . 14 7 . 5 7 2 . 9 2 4 . 5 . 3 2 3 3 1 26 5 Fast Attach 90 | 7 . 11 3 . . . . 1 1 . . . 2 1 1 5 1 . 5 19 1 5 6 2 7 1 6 5 Attach 94 | . 1 7 4 7 . . 9 2 2 5 1 3 4 . . 2 4 3 . 9 . 4 4 3 . 1 6 13 Detach 40 | . . 3 3 . . . . 1 2 . . . 1 . . 1 . 1 1 7 . 3 . 2 1 2 3 9 Swap 202 | 2 8 14 13 12 . . 14 . 24 9 . 15 7 . 2 21 11 5 2 3 . . 1 1 9 6 16 7 Drop 150 | . 6 18 17 10 . . . . 17 2 . 6 3 2 . 18 . 1 4 8 . 1 . . 12 7 16 2 Fire 413 | 16 34 84 6 . . . 22 . 27 14 5 36 10 2 6 11 4 6 . 16 . 3 7 8 1 7 43 45 Melee 512 | . 8 83 46 68 8 . 13 4 51 9 3 21 10 6 14 4 19 22 . 20 . . . . 19 17 15 52 Ram 1 | . . . . . . . . . . . . . . . . . . . . . . . . . . . . 1 Kick 7 | . 3 . . . . . . . 2 . . 1 . . . . . 1 . . . . . . . . . . Crush . | . . . . . . . . . . . . . . . . . . . . . . . . . . . . . Escape Stasis 11 | . . . . . . . . 2 5 . . . . . . . . . . . . . . . . 1 . 3 Rewire 197 | . . . . . . . 1 . 195 . . . . . . 1 . . . . . . . . . . . . Trap 20 | . . . . . 10 . . . . . . . . . 10 . . . . . . . . . . . . . Miscellaneous . | . . . . . . . . . . . . . . . . . . . . . . . . . . . . . Route ------- -11/Scrapyard -10/Materials (discovered 5 exits: *Mat x3 / [*Min] / Sub) -9/Materials (discovered 5 exits: *Mat x3 / *Min x2) -8/Materials (discovered 3 exits: *Fac / *Sto x2) -7/Factory -7/Lower Caves (discovered 2 exits: Low / *Dat) -7/Data Miner -6/Proximity Caves -6/Factory -6/Extension (discovered 2 exits: *Fac / *Cet) -6/Cetus (discovered 2 exits: *Fac / *Arc) -6/Archives (discovered 2 exits: *Fac / *Hub) -6/Hub_04(d) -5/Factory (discovered 2 exits: *Upp x2) -5/Upper Caves -5/Upper Caves -5/Warlord -4/Proximity Caves -4/Factory (discovered 2 exits: Upp x2) -4/Waste -4/Factory (discovered 2 exits: *Upp x2) -4/Upper Caves -4/Upper Caves (discovered 2 exits: *Res / *Zhi) -4/Zhirov -3/Proximity Caves -3/Research (discovered 3 exits: *Res / Arm / *Tes) -3/Testing -2/Research (discovered 2 exits: *Acc / *Qua) -1/Access History --------- Turn | Location | Event 3 | -11/Scrapyard | Discovered new exit (range 16) 170 | -11/Scrapyard | Entered Materials 305 | -10/Materials | Build established: Mutant 667 | -10/Materials | Central database locked down 728 | -10/Materials | Discovered new exit (range 8) 1156 | -10/Materials | Identified exit to Materials 1274 | -10/Materials | Learned location of Mines (-9) 1322 | -10/Materials | Discovered new exit (range 14) 1336 | -10/Materials | Learned location of 2 exits from Mines 1390 | -10/Materials | Loaded intel: 14 trap records 1490 | -10/Materials | Identified exit to Subcaves 1490 | -10/Materials | Learned location of 1 exit from Materials 1524 | -10/Materials | Learned location of 3 exits from Materials 1570 | -10/Materials | Learned 2 Materials zone layouts 1624 | -10/Materials | Learned location of Storage (-8) 2043 | -10/Materials | Entered another Materials area 2043 | -9/Materials | Evolved 2 slots: Propulsion x1, Utility x1 2044 | -9/Materials | Identified exit to Mines 2044 | -9/Materials | Identified exit to Materials 2493 | -9/Materials | Core integrity fell below 50% 2890 | -9/Materials | Discovered exit to Materials (range 12) 3202 | -9/Materials | Learned Storage stockpile data 3238 | -9/Materials | Learned Storage machine intel 3262 | -9/Materials | Learned 4 Recycling zone layouts 3283 | -9/Materials | Loaded intel: 11 trap records 3284 | -9/Materials | Learned 2 Materials zone layouts 3285 | -9/Materials | Learned location of 2 exits from Materials 3292 | -9/Materials | Learned location of Recycling (-8) 4318 | -9/Materials | Core integrity fell below 20% 4370 | -9/Materials | Entered another Materials area 4370 | -8/Materials | Evolved 2 slots: Propulsion x1, Utility x1 4371 | -8/Materials | Identified exit to Storage 4372 | -8/Materials | Identified exit to Factory 5112 | -8/Materials | Learned location of 1 exit from Lower Caves 5126 | -8/Materials | Build established: Gladiator 5138 | -8/Materials | Entered Factory 5138 | -7/Factory | Evolved 2 slots: Propulsion x1, Utility x1 6488 | -7/Factory | Fabricated Imp. Particle Charger? 6633 | -7/Factory | Discovered new exit (range 12) 6646 | -7/Factory | Identified exit to Lower Caves 6943 | -7/Factory | Entered Lower Caves 6944 | -7/Lower Caves | Encountered a Warlord checkpoint 6944 | -7/Lower Caves | Identified exit to Lower Caves 7242 | -7/Lower Caves | Spotted B-75 Beast 7322 | -7/Lower Caves | A Derelict revealed a hidden shortcut to meet someone special 7324 | -7/Lower Caves | Identified exit to Data Miner 7325 | -7/Lower Caves | Entered Data Miner 7325 | -7/Data Miner | Discovered new exit (range 6) 7348 | -7/Data Miner | Met Data Miner 7371 | -7/Data Miner | Learned location of Section 7 (-2) 7371 | -7/Data Miner | Acquired the access code to Warlord's prototype stash 7390 | -7/Data Miner | Received God Mode back door access code from Data Miner 7417 | -7/Data Miner | Identified exit to Proximity Caves 7418 | -7/Data Miner | Entered Proximity Caves 7520 | -6/Proximity Caves | Attracted the attention of an 0b10 outpost 8178 | -6/Proximity Caves | Build established: Mutant 8219 | -6/Proximity Caves | Discovered new exit (range 13) 8231 | -6/Proximity Caves | Lost 4 parts (4n) 8235 | -6/Proximity Caves | Identified exit to Factory 8237 | -6/Proximity Caves | System corruption reached 10% 8240 | -6/Proximity Caves | Entered Factory 8240 | -6/Factory | Evolved 2 slots: Propulsion x1, Utility x1 8413 | -6/Factory | Discovered new exit (range 10) 8423 | -6/Factory | Identified exit to Extension 8425 | -6/Factory | Entered Extension 8543 | -6/Extension | Build established: Scavenger-Mutant 8673 | -6/Extension | Rescued a captive Derelict 9001 | -6/Extension | Rescued a captive Derelict 9019 | -6/Extension | Spotted B-75 Beast 9151 | -6/Extension | Rescued a captive Derelict 9235 | -6/Extension | Build established: Mutant 9342 | -6/Extension | Energy Cycler disabled 9342 | -6/Extension | Rescued a captive Derelict 9343 | -6/Extension | Rescued a captive Derelict 9343 | -6/Extension | Rescued a captive Derelict 9344 | -6/Extension | Rescued a captive Derelict 9345 | -6/Extension | Rescued a captive Derelict 9349 | -6/Extension | Rescued a captive Derelict 9511 | -6/Extension | Rescued A7 9575 | -6/Extension | Disrupted transfer network 9907 | -6/Extension | Build established: Commander-Mutant 9955 | -6/Extension | Discovered new exit (range 10) 9956 | -6/Extension | Discovered new exit (range 6) 9988 | -6/Extension | Identified exit to Factory 9990 | -6/Extension | Identified exit to Cetus 10012 | -6/Extension | Entered Cetus 10012 | -6/Cetus | Accompanied by 17 allies (A7) 10017 | -6/Cetus | Acquired a Cetus Manufacturing Module code from A7 10036 | -6/Cetus | Spotted Cetus Guard 10036 | -6/Cetus | Spotted Cetus Guard 10038 | -6/Cetus | Spotted Cetus Guard 10044 | -6/Cetus | Spotted Cetus Guard 10046 | -6/Cetus | Extracted ID and sensor layout for unrecognized location from A7's data core 10059 | -6/Cetus | Allies destroyed Cetus Guard 10070 | -6/Cetus | Destroyed Cetus Guard 10072 | -6/Cetus | Allies destroyed Cetus Guard 10072 | -6/Cetus | Allies destroyed Cetus Guard 10096 | -6/Cetus | Lost 7 allies 10100 | -6/Cetus | Lost 3 parts (2n1u) 10145 | -6/Cetus | Started Cetus Manufacturing Module 10170 | -6/Cetus | Manufactured an Enhanced Grunt 10195 | -6/Cetus | Manufactured an Enhanced Grunt 10220 | -6/Cetus | Manufactured an Enhanced Grunt 10245 | -6/Cetus | Manufactured an Enhanced Grunt 10270 | -6/Cetus | Manufactured an Enhanced Grunt 10286 | -6/Cetus | Cetus Manufacturing Module disabled 10403 | -6/Cetus | Discovered new exit (range 16) 10467 | -6/Cetus | Spotted Cetus Guard 10467 | -6/Cetus | Spotted Cetus Guard 10470 | -6/Cetus | Spotted Cetus Guard 10472 | -6/Cetus | Spotted Cetus Guard 10484 | -6/Cetus | Allies destroyed Cetus Guard 10486 | -6/Cetus | Allies destroyed Cetus Guard 10490 | -6/Cetus | Allies destroyed Cetus Guard 10491 | -6/Cetus | Allies destroyed Cetus Guard 10495 | -6/Cetus | Discovered exit to Factory (range 15) 10503 | -6/Cetus | Met Revision 17 10553 | -6/Cetus | Identified exit to Archives 10608 | -6/Cetus | Entered Archives 10608 | -6/Archives | Accompanied by 13 allies 10672 | -6/Archives | Discovered exit to Factory (range 15) 10683 | -6/Archives | Discovered new exit (range 14) 10701 | -6/Archives | Identified exit to Hub_04(d) 10777 | -6/Archives | Unable to access archive contents 10815 | -6/Archives | Entered Hub_04(d) 10815 | -6/Hub_04(d) | Accompanied by 12 allies 10983 | -6/Hub_04(d) | Lost 3 allies 11147 | -6/Hub_04(d) | P-60 Hacker assimilated allied OP-EV5(g) 11203 | -6/Hub_04(d) | Network Hub disabled 11490 | -6/Hub_04(d) | Spotted Lightning 11490 | -6/Hub_04(d) | Spotted Lightning 11490 | -6/Hub_04(d) | Spotted Lightning 11515 | -6/Hub_04(d) | First assault squad dispatched 11538 | -6/Hub_04(d) | Lost 5 allies 11543 | -6/Hub_04(d) | Incoming assault squad redirected 11543 | -6/Hub_04(d) | Spotted B-75 Beast 11574 | -6/Hub_04(d) | Discovered exit to Factory (range 5) 11579 | -6/Hub_04(d) | Entered Factory 11579 | -5/Factory | Evolved 2 slots: Power x1, Weapon x1 11780 | -5/Factory | Build established: Scavenger-Gladiator 11892 | -5/Factory | Identified exit to Upper Caves 12105 | -5/Factory | Entered Upper Caves 12447 | -5/Upper Caves | Learned 4 Factory zone layouts 13035 | -5/Upper Caves | Discovered new exit (range 13) 13047 | -5/Upper Caves | Spotted B-75 Beast 13056 | -5/Upper Caves | Identified exit to Upper Caves 13057 | -5/Upper Caves | Entered another Upper Caves area 13059 | -5/Upper Caves | Attracted the attention of an 0b10 checkpoint 13175 | -5/Upper Caves | Learned Factory terminal intel 13472 | -5/Upper Caves | Encountered a Warlord checkpoint 13677 | -5/Upper Caves | Discovered new exit (range 7) 13684 | -5/Upper Caves | Identified exit to Warlord 13685 | -5/Upper Caves | Entered Warlord 13777 | -5/Warlord | System corruption cleaned by Quarantine Array 13897 | -5/Warlord | Learned Factory terminal intel 13897 | -5/Warlord | Learned Factory scanalyzer intel 13897 | -5/Warlord | Learned Research fabricator intel 13899 | -5/Warlord | Learned 4 Armory zone layouts 13899 | -5/Warlord | Learned 4 Quarantine zone layouts 13901 | -5/Warlord | Learned Testing stockpile data 14292 | -5/Warlord | Visited the Vortex Lab 14303 | -5/Warlord | Warlord's base attacked by MAIN.C 14314 | -5/Warlord | Met EX-DEC 14331 | -5/Warlord | Found Prototype Piercing Weapon 14332 | -5/Warlord | Identified Vortex Lance 14384 | -5/Warlord | Opened Warlord's prototype stash 14392 | -5/Warlord | Found Prototype Reactor 14392 | -5/Warlord | Identified Vortex Chain Reactor 14434 | -5/Warlord | Found Prototype Device 14434 | -5/Warlord | Identified System Purifier 14438 | -5/Warlord | Found Prototype Processor 14438 | -5/Warlord | Identified Spectral Analyzer 14444 | -5/Warlord | Found Prototype Processor 14444 | -5/Warlord | Identified Exp. Targeting Computer 14573 | -5/Warlord | Met Warlord 14653 | -5/Warlord | Warlord forces counterattacked 14675 | -5/Warlord | Spotted B-86 Titan 14737 | -5/Warlord | Lost 4 allies 14740 | -5/Warlord | Spotted Executioner 14749 | -5/Warlord | Spotted Striker 14754 | -5/Warlord | P-70 Sage assimilated allied O4-K1X(g) 14815 | -5/Warlord | Found Prototype Processor 14815 | -5/Warlord | Identified Exp. Core Analyzer 14824 | -5/Warlord | Lost 9 allies 14825 | -5/Warlord | Discovered new exit (range 20) 14851 | -5/Warlord | Identified exit to Proximity Caves 14852 | -5/Warlord | Entered Proximity Caves 14872 | -4/Proximity Caves | Spotted B-86 Titan 14950 | -4/Proximity Caves | Destroyed B-86 Titan 14971 | -4/Proximity Caves | Lost 5 parts (2n3u) 15036 | -4/Proximity Caves | Learned 4 Research zone layouts 15040 | -4/Proximity Caves | Learned Research stockpile data 15176 | -4/Proximity Caves | Build established: Scavenger-Mutant 15256 | -4/Proximity Caves | Discovered new exit (range 22) 15305 | -4/Proximity Caves | Entered Factory 15305 | -4/Factory | Evolved 2 slots: Utility x2 15307 | -4/Factory | Loaded intel: 26 terminal locations 15308 | -4/Factory | Loaded intel: 4 scanalyzer locations 15632 | -4/Factory | Identified exit to Upper Caves 15696 | -4/Factory | Build established: Scavenger-Assassin 16126 | -4/Factory | Sucked down chute 16126 | -4/Factory | Entered Waste 16142 | -4/Waste | Spotted C-40 Crusher 16163 | -4/Waste | Spotted C-40 Crusher 16163 | -4/Waste | Spotted C-40 Crusher 16230 | -4/Waste | Spotted C-40 Crusher 16233 | -4/Waste | Spotted C-40 Crusher 16238 | -4/Waste | Crushed by Compactor (1 part destroyed, 2 dropped) 16241 | -4/Waste | Crushed by Compactor (1 part destroyed, 1 dropped) 16246 | -4/Waste | Crushed by Compactor (1 part destroyed, 1 dropped) 16248 | -4/Waste | Spotted C-40 Crusher 16249 | -4/Waste | Crushed by Compactor (1 part destroyed, 1 dropped) 16252 | -4/Waste | Crushed by Compactor (1 part destroyed, 2 dropped) 16253 | -4/Waste | Discovered new exit (range 23) 16267 | -4/Waste | Identified exit to Factory 16269 | -4/Waste | Entered Factory 16270 | -4/Factory | Loaded intel: 26 terminal locations 16283 | -4/Factory | Lost 7 parts (5n1u1w) 16438 | -4/Factory | Build established: Assassin 16834 | -4/Factory | Lost 8 parts (1p3n3u1w) 16943 | -4/Factory | Lost 3 parts (2n1w) 16968 | -4/Factory | Entered Upper Caves 16999 | -4/Upper Caves | Lost 4 parts (1n3u) 17014 | -4/Upper Caves | Identified exit to Upper Caves 17054 | -4/Upper Caves | Entered another Upper Caves area 17059 | -4/Upper Caves | Entered a destroyed Warlord outpost 17059 | -4/Upper Caves | Discovered new exit (range 19) 17083 | -4/Upper Caves | Build established: Mutant 17138 | -4/Upper Caves | Encountered a Warlord checkpoint 17147 | -4/Upper Caves | Found DCF Scrap (14 items) 17241 | -4/Upper Caves | Found Alien Artifact 17241 | -4/Upper Caves | Identified Dimensional Node Initializer 17241 | -4/Upper Caves | Initialized slip node 17279 | -4/Upper Caves | Discovered new exit (range 21) 17295 | -4/Upper Caves | Entered Zhirov 17295 | -4/Zhirov | Discovered new exit (range 3) 17303 | -4/Zhirov | Met Zhirov 17311 | -4/Zhirov | Learned location of Quarantine (-2) 17311 | -4/Zhirov | Learned location of Testing (-3) 17311 | -4/Zhirov | Learned location of Command (-1) 17314 | -4/Zhirov | Zhirov requested help retrieving the SGEMP Prototype 17322 | -4/Zhirov | Found Alien Artifact 17322 | -4/Zhirov | Identified Integrated Dissipator 17322 | -4/Zhirov | Installed Integrated Dissipator, increased core heat dissipation (+20) 17391 | -4/Zhirov | Found Alien Artifact 17407 | -4/Zhirov | Entered Proximity Caves 17414 | -3/Proximity Caves | Spotted B-86 Titan 17432 | -3/Proximity Caves | Build established: Derelict-Mutant 17611 | -3/Proximity Caves | Discovered new exit (range 11) 17614 | -3/Proximity Caves | Entered Research 17614 | -3/Research | Evolved 2 slots: Power x1, Propulsion x1 17615 | -3/Research | Identified exit to Armory 17616 | -3/Research | Identified exit to Testing 17616 | -3/Research | Identified exit to Research 17618 | -3/Research | Loaded intel: 4 fabricator locations 17660 | -3/Research | Found Quantum Capacitor 17882 | -3/Research | Found Gamma Bomb Array 17883 | -3/Research | Entered Testing 18062 | -3/Testing | Spotted PL-IJMGEM8KMG 18161 | -3/Testing | Build established: Ninja 18170 | -3/Testing | Discovered exit to Research (range 5) 18174 | -3/Testing | Entered Research 18174 | -2/Research | Warlord forces began assault on 0b10 18174 | -2/Research | Evolved 2 slots: Propulsion x1, Utility x1 18284 | -2/Research | Research machine network offline 18460 | -2/Research | Discovered new exit (range 5) 18462 | -2/Research | Identified exit to Quarantine 18535 | -2/Research | Borebot progress halted 18578 | -2/Research | Borebot progress halted 18622 | -2/Research | Build established: Assassin 18642 | -2/Research | Lost 5 allies 18649 | -2/Research | Spotted Striker 18677 | -2/Research | Destroyed Striker 18706 | -2/Research | Borebot progress halted 18785 | -2/Research | Discovered new exit (range 18) 18837 | -2/Research | Identified exit to Access 18924 | -2/Research | Lost 3 allies 18938 | -2/Research | Spotted Striker 18973 | -2/Research | Spotted Executioner 18996 | -2/Research | Spotted Executioner 19029 | -2/Research | Lost 4 allies 19035 | -2/Research | Found Exp. Core Analyzer 19053 | -2/Research | Found Prototype Device 19054 | -2/Research | Identified Adv. Kinecellerator 19080 | -2/Research | Entered Access 19080 | -1/Access | Evolved 2 slots: Utility x1, Weapon x1 19257 | -1/Access | Destroyed 7 combat bots 19327 | -1/Access | Build established: Scavenger-Assassin 19735 | -1/Access | Lost 3 parts (1p2w) 19855 | -1/Access | System corruption reached 10% 19915 | -1/Access | Lost 4 parts (2p1u1w) 20023 | -1/Access | Garrison activated, responded to threat 20055 | -1/Access | Identified Transdimensional Reconstructor 20055 | -1/Access | Warped through subspace 20086 | -1/Access | Lost 6 parts (4n2u) 20118 | -1/Access | Core integrity fell below 50% 20148 | -1/Access | Core integrity fell below 20% 20149 | -1/Access | System corruption reached 30% 20164 | -1/Access | Destroyed by S-43 Plague with Heavy Machine Gun Last Messages --------------- 20115_ K-01 Serf collects debris. 20125_ Adv. Sensor Array destroyed. 20130_ System corrupted: Plasma Lance rejected. 20130_ Acquired Plasma Lance. 20135_ Exp. Core Analyzer destroyed. 20136_ Spectral Analyzer destroyed. 20142_ Triggered Stasis Trap. 20142_ A bubble of rippling energy engulfs the area. 20142_ Field strength at 94. 20142_ Field strength at 88. 20143_ Field strength at 82. 20145_ Field strength at 17. 20146_ P-80 Master resets S-43 Plague, system corruption cleaned. 20146_ Stasis field depleted. 20147_ U-05 Engineer builds a Wall. 20148_ Plasma Lance destroyed. 20149_ System corrupted: Matter fused (-6). 20153_ Acquired Core Analyzer. 20156_ ALERT: Potential suspicious activity detected, Programmers report to Access Zone 9S. Map ----- +----------------------------------------------------+ | ?????????????????????????????????????????????????? | | ?????????????????????????????????????????????????? | | ?????????????????????????????????????????????????? | | ?????????????????????????????????????????????????? | | ?????????????????????????????????????????????????? | | ?????????????????????????????????????????????????? | | ?????????????????????????????????????????????????? | | ?????????????????????????????????????????????????? | | ?????????????????????????????????????????????????? | | ?????????????????????????????????????????????????? | | ????????????????????????? ??????????????????????? | | ????????????????????????? ??????????????????????? | | ????????????????????????? ??????????????????????? | | ?????????????????????????k #?????????????????????? | | ????????????????????????? #?????????????????????? | | ????????????????????????#Ak#?????????????????????? | | ????????????????????????# #?????????????????????? | | ????????????????????????# #?????????????????????? | | ????????????????????????# #?????????????????????? | | ????????????????????????# #?????????????????????? | | ?????????????##?????????# #?????????????????????? | | ????????????? ??????# #?????????????????????? | | ???????????? ] ????# +?????????????????????? | | ???????????? ???# #?????????????????????? | | ???????????# ???# #?????????????????????? | | ???????????# ??#@u#??????###????????????? | | ???????????# = "??#m #???? !#????????????? | | ???????????# ""?# #?? #????????????? | | ???????????# ?# s# " #????????????? | | ???????????# #ss/ """ ?????????????? | | ???????????# #ss# """ #????????????? | | ######?????# + #?? " ?????????????? | | #?????# #ss#???? #????????????? | | #??????#############k #?????? #????????????? | | #?????????# ##### k#????????#????????????? | | #?????????# #?????????????????????? | | #?????????# #?????????????????????? | | #?????????# ########?????????????????????? | | #?????????## ##????????????????????????????? | | #??????????# #?????????????????????????????? | | #??????????# #?????????????????????????????? | | #??????????# #?????????????????????????????? | | #??????????# #?????????????????????????????? | | = ##?????????# #?????????????????????????????? | | #####"########### ########??????????????????????? | | ?????????????????? | | % ^^ ?????????????????? | | ######+###+##+############ ?????????????????? | | ??????? # #?????????? ?????????????????? | | ??????? # #??????????????????????????????? | +----------------------------------------------------+ Best States ------------- Heat Dissipation 72 Coolant Potential 100 Energy Generation 65 Energy Capacity 885 Matter Stores 300 Matter Capacity 800 Sight Range 24 Robot Scan Range 16 Terrain Scan Density 10 Jamming Range 16 Cloak Strength 3 Power Amplification 20 Corruption Containment 12 Corruption Block 8 Armor Coverage 750 Core Shielding 40 Phase Shifting 15 Evasion (%) 84 Targeting Accuracy 12 Melee Accuracy 8 Core Analysis 9 Armor Integrity Analysis 40 Recoil Reduction 3 Kinecelleration 50 Offensive Hacking 14 Item Schematics ----------------- Combat Drone Bay | -7/Data Miner | Free Lgt. Regenerative Plating | -7/Data Miner | Free Cld. Cesium-ion Thruster | -7/Data Miner | Free Gravity Neutralizer | -7/Data Miner | Free Shock Maul | -7/Data Miner | Free Hvy. Treads | -7/Data Miner | Free Imp. Dynamic Insulation System | -7/Data Miner | Free Imp. Plasma Cutter | -7/Data Miner | Free Hvy. Phase Cannon | -7/Data Miner | Free Assault Drone Bay | -4/Zhirov | Free Exp. Heat Sink | -4/Zhirov | Free Exp. Optical Array | -4/Zhirov | Free Imp. Arc Thrower | -4/Zhirov | Free Robot Schematics ------------------ M-28 Smith | -7/Data Miner | Free Y-54 Guardian | -7/Data Miner | Free G-47 Trooper | -7/Data Miner | Free G-50 Soldier | -7/Data Miner | Free B-48 Gladiator | -7/Data Miner | Free Fabricated ------------ Imp. Particle Charger | x2 | -7/Factory | Preloaded Repaired ---------- Nothing Alien Tech Used ----------------- Dimensional Node Initializer Integrated Dissipator Transdimensional Reconstructor Achievements -------------- None Challenges ------------ None Game ------ Seed CloakingSupercompositeTether Manual? 0 Play Time 03:46:37 Cumulative 167.5 hours Start 2025.08.02 @ 22:06:23 End 2025.08.03 @ 15:20:20 Sessions 3 Manual Loads 0 Difficulty Rogue Special Mode None Game No. 147 Rogue 147 Adventurer 0 Explorer 0 Win Type - Total 3 Types 2/0/0/1/0/0/0/0/0/0 Lore% 72 Gallery% 65 Achievement% 57 Wizard Run 0 Options --------- Layout 0 ASCII 0 Keyboard 1 Movement Numpad Keybinds 0 Fullscreen 1 Font 24/Terminus Map View 76x50 Zoom Use 0% Tactical HUD 1 Map Filters NONE Filters NONE Steam 1 RUN: 60377f48-f08c-4f58-a1a5-888bce8863b8